[Event "Titled Tuesday Blitz December 27 Late 2022"]
[White "Ezat, Mohamed"]
[Black "TheKnightOfBosnia"]
[WhiteFideId "10600906"]
[WhiteElo "2402"]
[BlackElo "2434"]
[Result "1-0"]
[Round "11"]
[TimeControl "180+2"]
[Date "2022.12.27"]
[WhiteClock "0:02:01"]
[BlackClock "0:00:40"]

1. d4 {[%clk 0:03:00]}  Nf6 {[%clk 0:02:59]} 2. Nc3 {[%clk 0:02:59]}  d5 {[%clk 0:02:59]} 3. Bg5 {[%clk 0:02:59]}  e6 {[%clk 0:02:56]} 4. e4 {[%clk 0:02:58]}  dxe4 {[%clk 0:02:55]} 5. Nxe4 {[%clk 0:02:58]}  Be7 {[%clk 0:02:55]} 6. Bxf6 {[%clk 0:02:59]}  Bxf6 {[%clk 0:02:56]} 7. Nf3 {[%clk 0:02:59]}  Nd7 {[%clk 0:02:56]} 8. Bd3 {[%clk 0:02:58]}  b6 {[%clk 0:02:56]} 9. Qe2 {[%clk 0:02:57]}  Bb7 {[%clk 0:02:54]} 10. O-O-O {[%clk 0:02:58]}  Qe7 {[%clk 0:02:52]} 11. Kb1 {[%clk 0:02:58]}  O-O {[%clk 0:02:49]} 12. g4 {[%clk 0:02:56]}  c5 {[%clk 0:02:35]} 13. g5 {[%clk 0:02:44]}  Bxd4 {[%clk 0:02:33]} 14. c3 {[%clk 0:02:36]}  c4 {[%clk 0:02:02]} 15. Bc2 {[%clk 0:02:28]}  Bc5 {[%clk 0:01:57]} 16. Rxd7 {[%clk 0:02:14]}  Qxd7 {[%clk 0:01:55]} 17. Nf6+ {[%clk 0:02:15]}  gxf6 {[%clk 0:01:51]} 18. gxf6 {[%clk 0:02:15]}  Qd5 {[%clk 0:00:40]} 19. Rg1+ {[%clk 0:02:07]}  Kh8 {[%clk 0:00:40]} 20. Ng5 {[%clk 0:02:01]} 1-0


[Site "https://www.chess.com"]

[Event "Titled Tuesday Blitz December 27 Late 2022"]
[White "Fernandez Guillen, Ernesto J."]
[Black "Xiong, Jeffery"]
[WhiteFideId "3512428"]
[BlackFideId "2047640"]
[WhiteElo "2477"]
[BlackElo "2692"]
[Result "0-1"]
[Round "11"]
[TimeControl "180+2"]
[Date "2022.12.27"]
[WhiteClock "0:00:08"]
[BlackClock "0:00:10"]

1. e4 {[%clk 0:02:59]}  g6 {[%clk 0:03:00]} 2. d4 {[%clk 0:02:31]}  Nf6 {[%clk 0:03:00]} 3. Nc3 {[%clk 0:02:31]}  d5 {[%clk 0:03:01]} 4. e5 {[%clk 0:02:29]}  Ne4 {[%clk 0:03:01]} 5. Bd3 {[%clk 0:02:29]}  Nxc3 {[%clk 0:03:01]} 6. bxc3 {[%clk 0:02:30]}  c5 {[%clk 0:03:02]} 7. Nf3 {[%clk 0:02:29]}  Nc6 {[%clk 0:03:02]} 8. Be3 {[%clk 0:02:29]}  c4 {[%clk 0:03:03]} 9. Be2 {[%clk 0:02:29]}  Qa5 {[%clk 0:03:03]} 10. Bd2 {[%clk 0:02:29]}  Bg7 {[%clk 0:03:04]} 11. h4 {[%clk 0:02:29]}  f6 {[%clk 0:03:04]} 12. exf6 {[%clk 0:02:28]}  Bxf6 {[%clk 0:03:03]} 13. h5 {[%clk 0:02:28]}  Bf5 {[%clk 0:03:04]} 14. Nh4 {[%clk 0:02:00]}  Bd7 {[%clk 0:02:46]} 15. Bf3 {[%clk 0:01:50]}  g5 {[%clk 0:02:41]} 16. g4 {[%clk 0:01:40]}  gxh4 {[%clk 0:02:21]} 17. g5 {[%clk 0:01:41]}  Bg7 {[%clk 0:02:21]} 18. h6 {[%clk 0:01:40]}  Bf8 {[%clk 0:02:21]} 19. Bh5+ {[%clk 0:01:40]}  Kd8 {[%clk 0:02:22]} 20. Qf3 {[%clk 0:01:34]}  Kc7 {[%clk 0:02:10]} 21. Qf4+ {[%clk 0:01:31]}  Kb6 {[%clk 0:01:53]} 22. O-O {[%clk 0:01:22]}  Ka6 {[%clk 0:01:49]} 23. a4 {[%clk 0:01:13]}  Rg8 {[%clk 0:01:49]} 24. Kh1 {[%clk 0:01:00]}  e5 {[%clk 0:01:21]} 25. Qf7 {[%clk 0:00:56]}  Be7 {[%clk 0:01:15]} 26. Rfb1 {[%clk 0:00:42]}  Raf8 {[%clk 0:01:11]} 27. Qxh7 {[%clk 0:00:40]}  Qd8 {[%clk 0:01:01]} 28. Bf7 {[%clk 0:00:24]}  Bg4 {[%clk 0:00:32]} 29. Rb5 {[%clk 0:00:17]}  Bf3+ {[%clk 0:00:31]} 30. Kh2 {[%clk 0:00:16]}  exd4 {[%clk 0:00:19]} 31. Qf5 {[%clk 0:00:15]}  Bxg5 {[%clk 0:00:15]} 32. Qxf3 {[%clk 0:00:13]}  Qc7+ {[%clk 0:00:14]} 33. Kh1 {[%clk 0:00:13]}  Qxf7 {[%clk 0:00:14]} 34. Qxf7 {[%clk 0:00:12]}  Rxf7 {[%clk 0:00:15]} 35. Bxg5 {[%clk 0:00:10]}  Rxg5 {[%clk 0:00:16]} 36. Rg1 {[%clk 0:00:06]}  Rxg1+ {[%clk 0:00:10]} 37. Kxg1 {[%clk 0:00:07]}  dxc3 {[%clk 0:00:09]} 38. Rxd5 {[%clk 0:00:07]}  Rh7 {[%clk 0:00:09]} 39. Rh5 {[%clk 0:00:07]}  Nb4 {[%clk 0:00:08]} 40. Rxh4 {[%clk 0:00:03]}  Nxc2 {[%clk 0:00:04]} 41. Rxc4 {[%clk 0:00:04]}  Rxh6 {[%clk 0:00:04]} 42. Kf1 {[%clk 0:00:04]}  Rc6 {[%clk 0:00:04]} 43. Rxc6+ {[%clk 0:00:04]}  bxc6 {[%clk 0:00:05]} 44. Ke2 {[%clk 0:00:05]}  Nd4+ {[%clk 0:00:06]} 45. Kd3 {[%clk 0:00:05]}  c2 {[%clk 0:00:06]} 46. Kd2 {[%clk 0:00:06]}  Ka5 {[%clk 0:00:07]} 47. f4 {[%clk 0:00:07]}  Kxa4 {[%clk 0:00:08]} 48. f5 {[%clk 0:00:07]}  Kb3 {[%clk 0:00:08]} 49. f6 {[%clk 0:00:08]}  Kb2 {[%clk 0:00:09]} 50. Kd3 {[%clk 0:00:08]}  c1=Q {[%clk 0:00:10]} 51. Kxd4 {[%clk 0:00:08]}  Qf4+ {[%clk 0:00:10]} 0-1


[Site "https://www.chess.com"]

[Event "Titled Tuesday Blitz December 27 Late 2022"]
[White "Fernandez, Maria Florencia"]
[Black "Fiorito, Joaquin"]
[WhiteFideId "116459"]
[BlackFideId "180173"]
[WhiteElo "2129"]
[BlackElo "2405"]
[Result "0-1"]
[Round "11"]
[TimeControl "180+2"]
[Date "2022.12.27"]
[WhiteClock "0:00:04"]
[BlackClock "0:00:16"]

1. d4 {[%clk 0:03:00]}  Nf6 {[%clk 0:02:59]} 2. c4 {[%clk 0:02:59]}  e6 {[%clk 0:03:00]} 3. Nc3 {[%clk 0:02:59]}  Bb4 {[%clk 0:03:00]} 4. a3 {[%clk 0:02:59]}  Bxc3+ {[%clk 0:02:59]} 5. bxc3 {[%clk 0:03:00]}  d6 {[%clk 0:02:59]} 6. f3 {[%clk 0:03:00]}  O-O {[%clk 0:02:59]} 7. e4 {[%clk 0:03:00]}  e5 {[%clk 0:02:59]} 8. d5 {[%clk 0:02:58]}  Nbd7 {[%clk 0:02:50]} 9. Bg5 {[%clk 0:02:56]}  Nc5 {[%clk 0:02:44]} 10. Bd3 {[%clk 0:02:36]}  h6 {[%clk 0:02:36]} 11. Bh4 {[%clk 0:02:34]}  Bd7 {[%clk 0:02:28]} 12. Ne2 {[%clk 0:02:32]}  Ba4 {[%clk 0:02:23]} 13. Qb1 {[%clk 0:02:12]}  Rb8 {[%clk 0:02:18]} 14. O-O {[%clk 0:02:02]}  g5 {[%clk 0:02:13]} 15. Bf2 {[%clk 0:01:58]}  b6 {[%clk 0:02:12]} 16. Ng3 {[%clk 0:01:50]}  Bd7 {[%clk 0:02:06]} 17. Qc2 {[%clk 0:01:35]}  Ne8 {[%clk 0:02:05]} 18. Nf5 {[%clk 0:01:17]}  Kh7 {[%clk 0:01:41]} 19. g3 {[%clk 0:01:09]}  Ng7 {[%clk 0:01:39]} 20. Kh1 {[%clk 0:00:45]}  Qc8 {[%clk 0:00:48]} 21. Ne7 {[%clk 0:00:37]}  Qa6 {[%clk 0:00:47]} 22. f4 {[%clk 0:00:32]}  f6 {[%clk 0:00:43]} 23. fxe5 {[%clk 0:00:28]}  fxe5 {[%clk 0:00:37]} 24. Bxc5 {[%clk 0:00:23]}  bxc5 {[%clk 0:00:38]} 25. Nf5 {[%clk 0:00:18]}  Nxf5 {[%clk 0:00:37]} 26. exf5 {[%clk 0:00:18]}  Rf6 {[%clk 0:00:36]} 27. Qg2 {[%clk 0:00:14]}  Rb6 {[%clk 0:00:34]} 28. h4 {[%clk 0:00:11]}  Qa5 {[%clk 0:00:29]} 29. hxg5 {[%clk 0:00:10]}  hxg5 {[%clk 0:00:30]} 30. Qd2 {[%clk 0:00:08]}  Rh6+ {[%clk 0:00:27]} 31. Kg1 {[%clk 0:00:08]}  Rh5 {[%clk 0:00:12]} 32. f6+ {[%clk 0:00:08]}  Kg8 {[%clk 0:00:13]} 33. Qe2 {[%clk 0:00:07]}  g4 {[%clk 0:00:12]} 34. f7+ {[%clk 0:00:05]}  Kf8 {[%clk 0:00:12]} 35. Qf2 {[%clk 0:00:03]}  Qxc3 {[%clk 0:00:12]} 36. Rad1 {[%clk 0:00:01]}  Qd4 {[%clk 0:00:11]} 37. Qxd4 {[%clk 0:00:02]}  cxd4 {[%clk 0:00:12]} 38. Rb1 {[%clk 0:00:01]}  Rh6 {[%clk 0:00:10]} 39. Rxb6 {[%clk 0:00:01]}  axb6 {[%clk 0:00:11]} 40. Rf2 {[%clk 0:00:01]}  Rh5 {[%clk 0:00:10]} 41. Be4 {[%clk 0:00:02]}  Rg5 {[%clk 0:00:10]} 42. Rb2 {[%clk 0:00:02]}  Rg7 {[%clk 0:00:10]} 43. Rf2 {[%clk 0:00:01]}  Rxf7 {[%clk 0:00:09]} 44. Rxf7+ {[%clk 0:00:02]}  Kxf7 {[%clk 0:00:10]} 45. Kf2 {[%clk 0:00:03]}  Kf6 {[%clk 0:00:11]} 46. Ke2 {[%clk 0:00:03]}  Bf5 {[%clk 0:00:11]} 47. Bg2 {[%clk 0:00:04]}  e4 {[%clk 0:00:12]} 48. Kd2 {[%clk 0:00:04]}  Ke5 {[%clk 0:00:12]} 49. Bh1 {[%clk 0:00:04]}  e3+ {[%clk 0:00:12]} 50. Ke2 {[%clk 0:00:04]}  Be4 {[%clk 0:00:13]} 51. Bxe4 {[%clk 0:00:04]}  Kxe4 {[%clk 0:00:14]} 52. a4 {[%clk 0:00:04]}  d3+ {[%clk 0:00:14]} 53. Kd1 {[%clk 0:00:05]}  Kd4 {[%clk 0:00:15]} 54. Kc1 {[%clk 0:00:03]}  Kxc4 {[%clk 0:00:15]} 55. Kb2 {[%clk 0:00:03]}  e2 {[%clk 0:00:16]} 56. a5 {[%clk 0:00:03]}  bxa5 {[%clk 0:00:15]} 57. Ka3 {[%clk 0:00:03]}  e1=Q {[%clk 0:00:15]} 58. Kb2 {[%clk 0:00:03]}  Qc3+ {[%clk 0:00:16]} 59. Ka2 {[%clk 0:00:04]}  Qc2+ {[%clk 0:00:16]} 60. Ka3 {[%clk 0:00:04]}  Qb3# {[%clk 0:00:16]} 0-1


[Site "https://www.chess.com"]

[Event "Titled Tuesday Blitz December 27 Late 2022"]
[White "Fishbein, Alexander"]
[Black "Ladan, Nicholas"]
[WhiteFideId "2000377"]
[BlackFideId "30918855"]
[WhiteElo "2366"]
[BlackElo "2228"]
[Result "1-0"]
[Round "11"]
[TimeControl "180+2"]
[Date "2022.12.27"]
[WhiteClock "0:01:35"]
[BlackClock "0:00:11"]

1. e4 {[%clk 0:02:59]}  e5 {[%clk 0:02:58]} 2. f4 {[%clk 0:02:58]}  d6 {[%clk 0:02:53]} 3. Nf3 {[%clk 0:02:58]}  g6 {[%clk 0:02:52]} 4. Bc4 {[%clk 0:02:56]}  Bg7 {[%clk 0:02:48]} 5. O-O {[%clk 0:02:55]}  Nh6 {[%clk 0:02:38]} 6. fxe5 {[%clk 0:02:54]}  dxe5 {[%clk 0:02:37]} 7. d3 {[%clk 0:02:54]}  O-O {[%clk 0:02:34]} 8. Bg5 {[%clk 0:02:52]}  Qd6 {[%clk 0:02:28]} 9. Qd2 {[%clk 0:02:52]}  Ng4 {[%clk 0:02:23]} 10. Nc3 {[%clk 0:02:52]}  h6 {[%clk 0:02:13]} 11. Bh4 {[%clk 0:02:52]}  g5 {[%clk 0:02:12]} 12. Bg3 {[%clk 0:02:52]}  Qb6+ {[%clk 0:01:52]} 13. Kh1 {[%clk 0:02:51]}  Ne3 {[%clk 0:01:52]} 14. Nd5 {[%clk 0:02:25]}  Nxc4 {[%clk 0:01:40]} 15. dxc4 {[%clk 0:02:13]}  Qd6 {[%clk 0:01:40]} 16. c5 {[%clk 0:02:11]}  Qxc5 {[%clk 0:01:35]} 17. Bxe5 {[%clk 0:02:11]}  c6 {[%clk 0:01:28]} 18. b4 {[%clk 0:02:07]}  Qc4 {[%clk 0:01:11]} 19. Bxg7 {[%clk 0:02:07]}  Kxg7 {[%clk 0:00:50]} 20. Nc7 {[%clk 0:02:04]}  Be6 {[%clk 0:00:49]} 21. Qd4+ {[%clk 0:02:00]}  Kg8 {[%clk 0:00:31]} 22. Qf6 {[%clk 0:01:54]}  Nd7 {[%clk 0:00:22]} 23. Qxh6 {[%clk 0:01:53]}  Qxe4 {[%clk 0:00:21]} 24. Qxg5+ {[%clk 0:01:50]}  Kh8 {[%clk 0:00:17]} 25. Qh6+ {[%clk 0:01:50]}  Qh7 {[%clk 0:00:16]} 26. Qxh7+ {[%clk 0:01:48]}  Kxh7 {[%clk 0:00:17]} 27. Nxa8 {[%clk 0:01:44]}  Rxa8 {[%clk 0:00:18]} 28. Ng5+ {[%clk 0:01:44]}  Kg6 {[%clk 0:00:15]} 29. Nxe6 {[%clk 0:01:43]}  fxe6 {[%clk 0:00:16]} 30. Rad1 {[%clk 0:01:43]}  Nf6 {[%clk 0:00:13]} 31. Rd6 {[%clk 0:01:43]}  Re8 {[%clk 0:00:13]} 32. Re1 {[%clk 0:01:37]}  Kf5 {[%clk 0:00:13]} 33. h3 {[%clk 0:01:37]}  Ne4 {[%clk 0:00:12]} 34. g4+ {[%clk 0:01:35]}  Kf4 {[%clk 0:00:11]} 35. Rd4 {[%clk 0:01:35]} 1-0


[Site "https://www.chess.com"]

[Event "Titled Tuesday Blitz December 27 Late 2022"]
[White "Fisher_TheGalactic"]
[Black "Denishev, Marat"]
[BlackFideId "24131563"]
[WhiteElo "2477"]
[BlackElo "2255"]
[Result "1-0"]
[Round "11"]
[TimeControl "180+2"]
[Date "2022.12.27"]
[WhiteClock "0:01:32"]
[BlackClock "0:01:23"]

1. Nf3 {[%clk 0:03:00]}  Nf6 {[%clk 0:02:58]} 2. g3 {[%clk 0:03:00]}  b6 {[%clk 0:02:57]} 3. Bg2 {[%clk 0:03:00]}  Bb7 {[%clk 0:02:58]} 4. O-O {[%clk 0:03:01]}  g6 {[%clk 0:02:58]} 5. d4 {[%clk 0:03:02]}  Bg7 {[%clk 0:02:58]} 6. c4 {[%clk 0:03:02]}  O-O {[%clk 0:02:59]} 7. Nc3 {[%clk 0:03:03]}  Ne4 {[%clk 0:02:59]} 8. Qc2 {[%clk 0:03:00]}  Nxc3 {[%clk 0:02:58]} 9. bxc3 {[%clk 0:03:01]}  c5 {[%clk 0:02:58]} 10. d5 {[%clk 0:03:00]}  b5 {[%clk 0:02:55]} 11. Nd2 {[%clk 0:02:54]}  bxc4 {[%clk 0:02:54]} 12. Nxc4 {[%clk 0:02:55]}  d6 {[%clk 0:02:54]} 13. h4 {[%clk 0:02:39]}  Nd7 {[%clk 0:02:54]} 14. Rb1 {[%clk 0:02:17]}  Nb6 {[%clk 0:02:48]} 15. Nxb6 {[%clk 0:02:15]}  axb6 {[%clk 0:02:49]} 16. c4 {[%clk 0:02:16]}  Ra6 {[%clk 0:02:39]} 17. h5 {[%clk 0:02:15]}  Qd7 {[%clk 0:02:37]} 18. Bf3 {[%clk 0:02:09]}  Rfa8 {[%clk 0:02:36]} 19. a3 {[%clk 0:02:09]}  Qc7 {[%clk 0:02:31]} 20. Kg2 {[%clk 0:02:08]}  Bc8 {[%clk 0:02:31]} 21. Rh1 {[%clk 0:02:06]}  Bd7 {[%clk 0:02:23]} 22. hxg6 {[%clk 0:01:58]}  hxg6 {[%clk 0:02:24]} 23. Be4 {[%clk 0:01:58]}  Qc8 {[%clk 0:02:13]} 24. f3 {[%clk 0:01:41]}  Ba4 {[%clk 0:01:43]} 25. Qd2 {[%clk 0:01:33]}  Qe8 {[%clk 0:01:35]} 26. Bb2 {[%clk 0:01:32]}  Bxb2 {[%clk 0:01:28]} 27. Qxb2 {[%clk 0:01:33]}  f6 {[%clk 0:01:28]} 28. Rh6 {[%clk 0:01:31]}  Kg7 {[%clk 0:01:23]} 29. Rbh1 {[%clk 0:01:32]} 1-0


[Site "https://www.chess.com"]

[Event "Titled Tuesday Blitz December 27 Late 2022"]
[White "Gerbelli Neto, Eduardo"]
[Black "Ibadov, Dashgyn"]
[WhiteFideId "2103281"]
[BlackFideId "24107514"]
[WhiteElo "2114"]
[BlackElo "2391"]
[Result "0-1"]
[Round "11"]
[TimeControl "180+2"]
[Date "2022.12.27"]
[WhiteClock "0:00:01"]
[BlackClock "0:00:03"]

1. e4 {[%clk 0:02:59]}  c5 {[%clk 0:02:57]} 2. Nc3 {[%clk 0:02:58]}  Nc6 {[%clk 0:02:56]} 3. f4 {[%clk 0:02:59]}  d6 {[%clk 0:02:50]} 4. Nf3 {[%clk 0:02:59]}  g6 {[%clk 0:02:50]} 5. Bc4 {[%clk 0:02:55]}  Bg7 {[%clk 0:02:50]} 6. O-O {[%clk 0:02:56]}  e6 {[%clk 0:02:49]} 7. d3 {[%clk 0:02:56]}  Nge7 {[%clk 0:02:48]} 8. Qe1 {[%clk 0:02:56]}  Na5 {[%clk 0:02:37]} 9. Bb5+ {[%clk 0:02:52]}  Bd7 {[%clk 0:02:38]} 10. a4 {[%clk 0:02:47]}  a6 {[%clk 0:02:35]} 11. Bxd7+ {[%clk 0:02:47]}  Qxd7 {[%clk 0:02:36]} 12. f5 {[%clk 0:02:40]}  gxf5 {[%clk 0:02:32]} 13. exf5 {[%clk 0:02:39]}  Nxf5 {[%clk 0:02:29]} 14. Nd5 {[%clk 0:02:40]}  O-O {[%clk 0:02:04]} 15. Nb6 {[%clk 0:02:35]}  Qc7 {[%clk 0:02:05]} 16. Nxa8 {[%clk 0:02:34]}  Rxa8 {[%clk 0:02:05]} 17. Bd2 {[%clk 0:02:26]}  Nc6 {[%clk 0:02:04]} 18. c3 {[%clk 0:02:27]}  d5 {[%clk 0:02:04]} 19. Nh4 {[%clk 0:02:19]}  Nxh4 {[%clk 0:01:59]} 20. Qxh4 {[%clk 0:02:20]}  Ne7 {[%clk 0:01:50]} 21. Qh5 {[%clk 0:02:03]}  Ng6 {[%clk 0:01:49]} 22. Bh6 {[%clk 0:01:52]}  Qe5 {[%clk 0:01:45]} 23. Qxe5 {[%clk 0:01:46]}  Nxe5 {[%clk 0:01:37]} 24. Bxg7 {[%clk 0:01:42]}  Kxg7 {[%clk 0:01:38]} 25. d4 {[%clk 0:01:39]}  cxd4 {[%clk 0:01:37]} 26. cxd4 {[%clk 0:01:40]}  Nc4 {[%clk 0:01:25]} 27. Rf3 {[%clk 0:01:30]}  Nd6 {[%clk 0:00:58]} 28. Rc1 {[%clk 0:01:25]}  b5 {[%clk 0:00:54]} 29. Rc6 {[%clk 0:01:09]}  Nf5 {[%clk 0:00:54]} 30. Rc7 {[%clk 0:01:06]}  bxa4 {[%clk 0:00:51]} 31. g4 {[%clk 0:01:01]}  Nh6 {[%clk 0:00:51]} 32. h3 {[%clk 0:00:48]}  Rb8 {[%clk 0:00:51]} 33. Ra3 {[%clk 0:00:49]}  Rxb2 {[%clk 0:00:49]} 34. Rxa4 {[%clk 0:00:49]}  Rd2 {[%clk 0:00:43]} 35. Ra7 {[%clk 0:00:48]}  Kg6 {[%clk 0:00:31]} 36. R7xa6 {[%clk 0:00:45]}  Ng8 {[%clk 0:00:27]} 37. Ra7 {[%clk 0:00:26]}  Nf6 {[%clk 0:00:27]} 38. Kf1 {[%clk 0:00:20]}  Ne4 {[%clk 0:00:25]} 39. h4 {[%clk 0:00:15]}  Rf2+ {[%clk 0:00:20]} 40. Ke1 {[%clk 0:00:15]}  Rf4 {[%clk 0:00:20]} 41. h5+ {[%clk 0:00:13]}  Kf6 {[%clk 0:00:20]} 42. Ra8 {[%clk 0:00:09]}  Rxg4 {[%clk 0:00:20]} 43. Rh8 {[%clk 0:00:10]}  Nd6 {[%clk 0:00:15]} 44. Raa8 {[%clk 0:00:10]}  Nf5 {[%clk 0:00:13]} 45. Rxh7 {[%clk 0:00:09]}  Rxd4 {[%clk 0:00:09]} 46. Ra7 {[%clk 0:00:10]}  Nd6 {[%clk 0:00:07]} 47. Rd7 {[%clk 0:00:09]}  Ke5 {[%clk 0:00:07]} 48. h6 {[%clk 0:00:09]}  Rh4 {[%clk 0:00:07]} 49. Rh8 {[%clk 0:00:09]}  f5 {[%clk 0:00:05]} 50. h7 {[%clk 0:00:09]}  Ne4 {[%clk 0:00:03]} 51. Rg8 {[%clk 0:00:08]}  Nf6 {[%clk 0:00:03]} 52. h8=Q {[%clk 0:00:03]}  Rxh8 {[%clk 0:00:03]} 53. Rxh8 {[%clk 0:00:03]}  Nxd7 {[%clk 0:00:03]} 54. Kd2 {[%clk 0:00:04]}  Nf6 {[%clk 0:00:03]} 55. Ke3 {[%clk 0:00:04]}  d4+ {[%clk 0:00:03]} 56. Kd3 {[%clk 0:00:04]}  Nd5 {[%clk 0:00:03]} 57. Rd8 {[%clk 0:00:02]}  Nf4+ {[%clk 0:00:02]} 58. Kd2 {[%clk 0:00:02]}  Ke4 {[%clk 0:00:02]} 59. Ra8 {[%clk 0:00:02]}  e5 {[%clk 0:00:02]} 60. Ra4 {[%clk 0:00:02]}  Nd5 {[%clk 0:00:03]} 61. Ra5 {[%clk 0:00:01]}  f4 {[%clk 0:00:03]} 62. Ke2 {[%clk 0:00:01]}  Nc3+ {[%clk 0:00:03]} 63. Kd2 {[%clk 0:00:01]}  Kf5 {[%clk 0:00:03]} 64. Rc5 {[%clk 0:00:01]}  f3 {[%clk 0:00:03]} 0-1


[Site "https://www.chess.com"]

[Event "Titled Tuesday Blitz December 27 Late 2022"]
[White "Gurevich, Dmitry"]
[Black "Estrada Nieto, Julian"]
[WhiteFideId "2000407"]
[BlackFideId "5101018"]
[WhiteElo "2393"]
[BlackElo "2215"]
[Result "1-0"]
[Round "11"]
[TimeControl "180+2"]
[Date "2022.12.27"]
[WhiteClock "0:00:22"]
[BlackClock "0:00:01"]

1. d4 {[%clk 0:03:00]}  d5 {[%clk 0:03:00]} 2. c4 {[%clk 0:03:01]}  dxc4 {[%clk 0:03:01]} 3. e4 {[%clk 0:02:59]}  e5 {[%clk 0:03:00]} 4. Nf3 {[%clk 0:02:58]}  exd4 {[%clk 0:03:01]} 5. Qxd4 {[%clk 0:02:57]}  Qxd4 {[%clk 0:03:00]} 6. Nxd4 {[%clk 0:02:58]}  Bc5 {[%clk 0:02:51]} 7. Be3 {[%clk 0:02:55]}  Nf6 {[%clk 0:02:38]} 8. Nc3 {[%clk 0:02:49]}  c6 {[%clk 0:02:35]} 9. Bxc4 {[%clk 0:02:45]}  Ng4 {[%clk 0:02:23]} 10. O-O {[%clk 0:02:43]}  Nxe3 {[%clk 0:02:20]} 11. fxe3 {[%clk 0:02:42]}  O-O {[%clk 0:02:20]} 12. e5 {[%clk 0:02:38]}  b5 {[%clk 0:02:12]} 13. Bb3 {[%clk 0:02:34]}  a5 {[%clk 0:02:08]} 14. Ne4 {[%clk 0:02:32]}  Bb6 {[%clk 0:01:55]} 15. e6 {[%clk 0:02:25]}  a4 {[%clk 0:01:35]} 16. exf7+ {[%clk 0:02:23]}  Kh8 {[%clk 0:01:35]} 17. Be6 {[%clk 0:02:08]}  Bxd4 {[%clk 0:01:21]} 18. Bxc8 {[%clk 0:02:07]}  Bxe3+ {[%clk 0:01:21]} 19. Kh1 {[%clk 0:02:06]}  Na6 {[%clk 0:01:14]} 20. Bb7 {[%clk 0:01:57]}  Ra7 {[%clk 0:01:13]} 21. Bxc6 {[%clk 0:01:47]}  Raxf7 {[%clk 0:01:12]} 22. Rxf7 {[%clk 0:01:46]}  Rxf7 {[%clk 0:01:13]} 23. Bxb5 {[%clk 0:01:44]}  Nb4 {[%clk 0:01:01]} 24. a3 {[%clk 0:01:33]}  Nc2 {[%clk 0:00:56]} 25. Rd1 {[%clk 0:01:29]}  g6 {[%clk 0:00:40]} 26. Bxa4 {[%clk 0:01:23]}  Nd4 {[%clk 0:00:36]} 27. g3 {[%clk 0:01:21]}  Rb7 {[%clk 0:00:26]} 28. b4 {[%clk 0:01:17]}  Ra7 {[%clk 0:00:26]} 29. Nc5 {[%clk 0:01:14]}  Nf3 {[%clk 0:00:20]} 30. Rd3 {[%clk 0:01:06]}  Bxc5 {[%clk 0:00:18]} 31. bxc5 {[%clk 0:01:02]}  Ne5 {[%clk 0:00:15]} 32. Re3 {[%clk 0:00:52]}  Nc4 {[%clk 0:00:11]} 33. Re8+ {[%clk 0:00:46]}  Kg7 {[%clk 0:00:11]} 34. Bb3 {[%clk 0:00:43]}  Nd2 {[%clk 0:00:10]} 35. Bd5 {[%clk 0:00:40]}  Rxa3 {[%clk 0:00:09]} 36. c6 {[%clk 0:00:39]}  Rc3 {[%clk 0:00:09]} 37. Re7+ {[%clk 0:00:37]}  Kf6 {[%clk 0:00:08]} 38. Rxh7 {[%clk 0:00:34]}  Ke5 {[%clk 0:00:09]} 39. Rd7 {[%clk 0:00:32]}  g5 {[%clk 0:00:08]} 40. Kg2 {[%clk 0:00:28]}  g4 {[%clk 0:00:06]} 41. c7 {[%clk 0:00:27]}  Rxc7 {[%clk 0:00:05]} 42. Rxc7 {[%clk 0:00:25]}  Kd4 {[%clk 0:00:03]} 43. Be6 {[%clk 0:00:24]}  Ne4 {[%clk 0:00:02]} 44. Rc4+ {[%clk 0:00:22]}  Ke5 {[%clk 0:00:01]} 45. Rxe4+ {[%clk 0:00:22]}  Kxe4 {[%clk 0:00:01]} 46. Bxg4 {[%clk 0:00:22]} 1-0


[Site "https://www.chess.com"]

[Event "Titled Tuesday Blitz December 27 Late 2022"]
[White "Janaszak, Dawid"]
[Black "Gubajdullin, Alexei"]
[WhiteFideId "1119206"]
[BlackFideId "4141202"]
[WhiteElo "2316"]
[BlackElo "2285"]
[Result "0-1"]
[Round "11"]
[TimeControl "180+2"]
[Date "2022.12.27"]
[WhiteClock "0:00:10"]
[BlackClock "0:00:27"]

1. e4 {[%clk 0:03:00]}  g6 {[%clk 0:02:58]} 2. Nc3 {[%clk 0:02:59]}  Bg7 {[%clk 0:02:57]} 3. Bc4 {[%clk 0:02:59]}  c6 {[%clk 0:02:55]} 4. d4 {[%clk 0:02:54]}  d5 {[%clk 0:02:54]} 5. exd5 {[%clk 0:02:53]}  b5 {[%clk 0:02:54]} 6. Bb3 {[%clk 0:02:53]}  b4 {[%clk 0:02:52]} 7. Na4 {[%clk 0:02:52]}  cxd5 {[%clk 0:02:52]} 8. Nf3 {[%clk 0:02:48]}  Nf6 {[%clk 0:02:51]} 9. O-O {[%clk 0:02:46]}  O-O {[%clk 0:02:51]} 10. a3 {[%clk 0:02:45]}  bxa3 {[%clk 0:02:50]} 11. Rxa3 {[%clk 0:02:45]}  Ne4 {[%clk 0:02:48]} 12. Re1 {[%clk 0:02:36]}  Nc6 {[%clk 0:02:46]} 13. c3 {[%clk 0:02:32]}  Na5 {[%clk 0:02:35]} 14. Bc2 {[%clk 0:02:29]}  Nc4 {[%clk 0:02:33]} 15. Ra2 {[%clk 0:02:28]}  Bb7 {[%clk 0:02:29]} 16. Ng5 {[%clk 0:02:22]}  e5 {[%clk 0:01:58]} 17. Nxe4 {[%clk 0:02:17]}  dxe4 {[%clk 0:01:58]} 18. Nc5 {[%clk 0:02:18]}  Bc6 {[%clk 0:01:58]} 19. Qe2 {[%clk 0:01:52]}  exd4 {[%clk 0:01:53]} 20. Bxe4 {[%clk 0:00:58]}  Bxe4 {[%clk 0:01:44]} 21. Nxe4 {[%clk 0:00:43]}  d3 {[%clk 0:01:43]} 22. Qd1 {[%clk 0:00:40]}  Re8 {[%clk 0:01:34]} 23. Bg5 {[%clk 0:00:34]}  Qd5 {[%clk 0:01:30]} 24. f3 {[%clk 0:00:16]}  d2 {[%clk 0:00:51]} 25. Rf1 {[%clk 0:00:12]}  Rxe4 {[%clk 0:00:46]} 26. fxe4 {[%clk 0:00:13]}  Qxg5 {[%clk 0:00:43]} 27. Qb3 {[%clk 0:00:09]}  Ne3 {[%clk 0:00:29]} 28. Qxf7+ {[%clk 0:00:09]}  Kh8 {[%clk 0:00:29]} 29. Rxa7 {[%clk 0:00:10]}  Qxg2# {[%clk 0:00:27]} 0-1


[Site "https://www.chess.com"]